Workbook

Sheet Festöversikt
B3: Festöversikt
B6: AKTIVITET | D6: GÄSTSAMMANFATTNING | H6: ="UTOMORDENTLIGA OSNINGAR: "&EnaståendeInbjudningssvar -> UTOMORDENTLIGA OSNINGAR: 2
B7: Mormor fyller 75 år | D7: OSA-ÖVERSIKT | F7: KOSTNAD PER GÄST | H7: BUDGETBELOPP
D8: Bekräftade gäster | E8: Totalt bekräftat | F8: Mat | G8: Övrigt | H8: Totalt
B9: DATUM | D9: Vuxna | E9: =SUMIF(GästBord[KOMMER?],"=Ja",GästBord[VUXNA]) -> 26 | F9: =MatBord[[#Totals],[KOSTNAD PER VUXEN]] -> 12.69 kr | G9: =FaktiskKostnadPerGäst -> 18.70 kr | H9: =(AntalDeltagare[[#This Row],[Mat]]+AntalDeltagare[[#This Row],[Övrigt]])*AntalVuxna -> 816.03 kr
B10: 2011-06-14 | D10: Barn | E10: =SUMIF(GästBord[KOMMER?],"=Ja",GästBord[BARN]) -> 20 | F10: =MatBord[[#Totals],[KOSTNAD PER BARN]] -> 7.25 kr | G10: =FaktiskKostnadPerGäst -> 18.70 kr | H10: =(AntalDeltagare[[#This Row],[Mat]]+AntalDeltagare[[#This Row],[Övrigt]])*AntalBarn -> 518.97 kr
D11: Totalt | E11: =SUBTOTAL(109,AntalDeltagare[Totalt bekräftat]) -> 46 | F11: ="Medel "&TEXT(SUBTOTAL(101,AntalDeltagare[Mat]),"#,## kr") -> Medel 9,97 kr | G11: ="Medel "&TEXT(SUBTOTAL(101,AntalDeltagare[Övrigt]),"#,## kr") -> Medel 18,7 kr | H11: =SUBTOTAL(109,AntalDeltagare[Totalt]) -> 1,335.00 kr
B12: TID
B13: 14.00 till 16.00
B15: PLATS
B16: Faster Tittis hus | D16: BUDGETSAMMANFATTNING
D17: FÖREMÅL | E17: ANTAL | F17: BUDGETBELOPP | G17: SUMMA KOSTNADER | H17: DIFFERENS
D18: Mat och dryck | E18: =COUNTA(MatBord[MAT ELLER DRYCK]) -> 18 | F18: 500.00 kr | G18: =MatBord[[#Totals],[SUMMA KOSTNADER]] -> 475.00 kr | H18: =BudgetÖversikt[[#This Row],[BUDGETBELOPP]]-BudgetÖversikt[[#This Row],[SUMMA KOSTNADER]] -> 25.00 kr
D19: =Bord1Rubrik -> Utrustning och material | E19: =COUNTA(Bord1Budget[Utrustning och material]) -> 7 | F19: 400.00 kr | G19: =Bord1Budget[[#Totals],[Kostnad]] -> 400.00 kr | H19: =BudgetÖversikt[[#This Row],[BUDGETBELOPP]]-BudgetÖversikt[[#This Row],[SUMMA KOSTNADER]] -> 0.00 kr
D20: =Tabell2Rubrik -> Dekorationer | E20: =COUNTA(Tabell2Budget[Dekorationer]) -> 4 | F20: 150.00 kr | G20: =Tabell2Budget[[#Totals],[Kostnad]] -> 175.00 kr | H20: =BudgetÖversikt[[#This Row],[BUDGETBELOPP]]-BudgetÖversikt[[#This Row],[SUMMA KOSTNADER]] -> (25.00 kr)
D21: =Bord3Rubrik -> Övrigt | E21: =COUNTA(Tabell3Budget[Övrigt]) -> 4 | F21: 300.00 kr | G21: =Tabell3Budget[[#Totals],[Kostnad]] -> 285.00 kr | H21: =BudgetÖversikt[[#This Row],[BUDGETBELOPP]]-BudgetÖversikt[[#This Row],[SUMMA KOSTNADER]] -> 15.00 kr
D22: Totalt | E22: =SUBTOTAL(109,BudgetÖversikt[ANTAL]) -> 33 | F22: =SUBTOTAL(109,BudgetÖversikt[BUDGETBELOPP]) -> 1,350.00 kr | G22: =SUBTOTAL(109,BudgetÖversikt[SUMMA KOSTNADER]) -> 1,335.00 kr | H22: =BudgetÖversikt[[#Totals],[BUDGETBELOPP]]-BudgetÖversikt[[#Totals],[SUMMA KOSTNADER]] -> 15.00 kr

Sheet Gästlista
B3: Gästlista
B7: NAMN | C7: ADRESS | D7: STAD | E7: ORT | F7: POSTNUMMER | G7: TELEFON | H7: E-POST | I7: KOMMER? | J7: BARN | K7: VUXNA | L7: TOTALT
B8: Familj1 | C8: Adress 1 | D8: Stad 1 | E8: Ort 1 | F8: Postnummer 1 | G8: Telefon 1 | H8: E-post1 | I8: Nej | J8: 2 | K8: 2 | L8: =SUM(GästBord[[#This Row],[BARN]:[VUXNA]]) -> 4
B9: Familj2 | C9: Adress 2 | D9: Stad 2 | E9: Ort 2 | F9: Postnummer 2 | G9: Telefon 2 | H9: E-post2 | I9: Ja | J9: 1 | K9: 1 | L9: =SUM(GästBord[[#This Row],[BARN]:[VUXNA]]) -> 2
B10: Familj3 | C10: Adress 3 | D10: Stad 3 | E10: Ort 3 | F10: Postnummer 3 | G10: Telefon 3 | H10: E-post3 | I10: Ja | J10: 3 | K10: 3 | L10: =SUM(GästBord[[#This Row],[BARN]:[VUXNA]]) -> 6
B11: Familj4 | C11: Adress 4 | D11: Stad 4 | E11: Ort 4 | F11: Postnummer 4 | G11: Telefon 4 | H11: E-post4 | K11: 2 | L11: =SUM(GästBord[[#This Row],[BARN]:[VUXNA]]) -> 2
B12: Familj 5 | C12: Adress 5 | D12: Stad 5 | E12: Ort 5 | F12: Postnummer 5 | G12: Telefon 5 | H12: E-post5 | I12: Ja | J12: 4 | K12: 3 | L12: =SUM(GästBord[[#This Row],[BARN]:[VUXNA]]) -> 7
B13: Familj 6 | C13: Adress 6 | D13: Stad 6 | E13: Ort 6 | F13: Postnummer 6 | G13: Telefon 6 | H13: E-post6 | I13: Ja | J13: 2 | K13: 2 | L13: =SUM(GästBord[[#This Row],[BARN]:[VUXNA]]) -> 4
B14: Familj 7 | C14: Adress 7 | D14: Stad 7 | E14: Ort 7 | F14: Postnummer 7 | G14: Telefon 7 | H14: E-post7 | I14: Ja | J14: 1 | K14: 4 | L14: =SUM(GästBord[[#This Row],[BARN]:[VUXNA]]) -> 5
B15: Familj 8 | C15: Adress 8 | D15: Stad 8 | E15: Ort 8 | F15: Postnummer 8 | G15: Telefon 8 | H15: E-post8 | I15: Nej | J15: 5 | K15: 3 | L15: =SUM(GästBord[[#This Row],[BARN]:[VUXNA]]) -> 8
B16: Familj 9 | C16: Adress 9 | D16: Stad 9 | E16: Ort 9 | F16: Postnummer 9 | G16: Telefon 9 | H16: E-post9 | I16: Ja | J16: 3 | K16: 2 | L16: =SUM(GästBord[[#This Row],[BARN]:[VUXNA]]) -> 5
B17: Familj 10 | C17: Adress 10 | D17: Stad 10 | E17: Ort 10 | F17: Postnummer 10 | G17: Telefon 10 | H17: E-post10 | I17: Ja | K17: 4 | L17: =SUM(GästBord[[#This Row],[BARN]:[VUXNA]]) -> 4
B18: Familj 11 | C18: Adress 11 | D18: Stad 11 | E18: Ort 11 | F18: Postnummer 11 | G18: Telefon 11 | H18: E-post11 | I18: Ja | J18: 3 | K18: 5 | L18: =SUM(GästBord[[#This Row],[BARN]:[VUXNA]]) -> 8
B19: Familj 12 | C19: Adress 12 | D19: Stad 12 | E19: Ort 12 | F19: Postnummer 12 | G19: Telefon 12 | H19: E-post12 | I19: Nej | J19: 2 | K19: 3 | L19: =SUM(GästBord[[#This Row],[BARN]:[VUXNA]]) -> 5
B20: Familj 13 | C20: Adress 13 | D20: Stad 13 | E20: Ort 13 | F20: Postnummer 13 | G20: Telefon 13 | H20: E-post13 | I20: Ja | J20: 3 | K20: 2 | L20: =SUM(GästBord[[#This Row],[BARN]:[VUXNA]]) -> 5
B21: Familj 14 | C21: Adress 14 | D21: Stad 14 | E21: Ort 14 | F21: Postnummer 14 | G21: Telefon 14 | H21: E-post14 | I21: Nej | K21: 1 | L21: =SUM(GästBord[[#This Row],[BARN]:[VUXNA]]) -> 1
B22: Familj 15 | C22: Adress 15 | D22: Stad 15 | E22: Ort 15 | F22: Postnummer 15 | G22: Telefon 15 | H22: E-post15 | K22: 2 | L22: =SUM(GästBord[[#This Row],[BARN]:[VUXNA]]) -> 2

Sheet Mat och dryck
B3: Mat och dryck
B5: Ange kostnad och antal uppskattade portioner om du automatiskt vill beräkna totala bitar och kostnad per portion baserat på antal gäster
B6: MAT ELLER DRYCK | C6: SUMMA KOSTNADER | D6: PORTIONER PER BARN | E6: PORTIONER PER VUXEN | F6: TOTALT ANTAL PORTIONER | G6: KOSTNAD PER PORTION | H6: KOSTNAD PER BARN | I6: KOSTNAD PER VUXEN | J6: ANTECKNINGAR
B7: Läsk | C7: 15.00 kr | D7: 0.5 | E7: 2 | F7: =(MatBord[[#This Row],[PORTIONER PER BARN]]*AntalBarn)+(MatBord[[#This Row],[PORTIONER PER VUXEN]]*AntalVuxna) -> 62 | G7: =IFERROR(MatBord[[#This Row],[SUMMA KOSTNADER]]/MatBord[[#This Row],[TOTALT ANTAL PORTIONER]],"") -> 0.24 kr | H7: =IFERROR(MatBord[[#This Row],[KOSTNAD PER PORTION]]*MatBord[[#This Row],[PORTIONER PER BARN]],"") -> 0.12 kr | I7: =IFERROR(MatBord[[#This Row],[KOSTNAD PER PORTION]]*MatBord[[#This Row],[PORTIONER PER VUXEN]],"") -> 0.48 kr | J7: 2-litersflaskor
B8: Juicelådor | C8: 15.00 kr | D8: 2 | E8: 0 | F8: =(MatBord[[#This Row],[PORTIONER PER BARN]]*AntalBarn)+(MatBord[[#This Row],[PORTIONER PER VUXEN]]*AntalVuxna) -> 40 | G8: =IFERROR(MatBord[[#This Row],[SUMMA KOSTNADER]]/MatBord[[#This Row],[TOTALT ANTAL PORTIONER]],"") -> 0.38 kr | H8: =IFERROR(MatBord[[#This Row],[KOSTNAD PER PORTION]]*MatBord[[#This Row],[PORTIONER PER BARN]],"") -> 0.75 kr | I8: =IFERROR(MatBord[[#This Row],[KOSTNAD PER PORTION]]*MatBord[[#This Row],[PORTIONER PER VUXEN]],"") -> 0.00 kr | J8: Äpplen och gröna vindruvor
B9: Vin | C9: 50.00 kr | D9: 0 | E9: 2 | F9: =(MatBord[[#This Row],[PORTIONER PER BARN]]*AntalBarn)+(MatBord[[#This Row],[PORTIONER PER VUXEN]]*AntalVuxna) -> 52 | G9: =IFERROR(MatBord[[#This Row],[SUMMA KOSTNADER]]/MatBord[[#This Row],[TOTALT ANTAL PORTIONER]],"") -> 0.96 kr | H9: =IFERROR(MatBord[[#This Row],[KOSTNAD PER PORTION]]*MatBord[[#This Row],[PORTIONER PER BARN]],"") -> 0.00 kr | I9: =IFERROR(MatBord[[#This Row],[KOSTNAD PER PORTION]]*MatBord[[#This Row],[PORTIONER PER VUXEN]],"") -> 1.92 kr
B10: Tårta | C10: 75.00 kr | D10: 1 | E10: 1 | F10: =(MatBord[[#This Row],[PORTIONER PER BARN]]*AntalBarn)+(MatBord[[#This Row],[PORTIONER PER VUXEN]]*AntalVuxna) -> 46 | G10: =IFERROR(MatBord[[#This Row],[SUMMA KOSTNADER]]/MatBord[[#This Row],[TOTALT ANTAL PORTIONER]],"") -> 1.63 kr | H10: =IFERROR(MatBord[[#This Row],[KOSTNAD PER PORTION]]*MatBord[[#This Row],[PORTIONER PER BARN]],"") -> 1.63 kr | I10: =IFERROR(MatBord[[#This Row],[KOSTNAD PER PORTION]]*MatBord[[#This Row],[PORTIONER PER VUXEN]],"") -> 1.63 kr | J10: Beställ från det lokala bageriet
B11: Glass | C11: 20.00 kr | D11: 1 | E11: 1.5 | F11: =(MatBord[[#This Row],[PORTIONER PER BARN]]*AntalBarn)+(MatBord[[#This Row],[PORTIONER PER VUXEN]]*AntalVuxna) -> 59 | G11: =IFERROR(MatBord[[#This Row],[SUMMA KOSTNADER]]/MatBord[[#This Row],[TOTALT ANTAL PORTIONER]],"") -> 0.34 kr | H11: =IFERROR(MatBord[[#This Row],[KOSTNAD PER PORTION]]*MatBord[[#This Row],[PORTIONER PER BARN]],"") -> 0.34 kr | I11: =IFERROR(MatBord[[#This Row],[KOSTNAD PER PORTION]]*MatBord[[#This Row],[PORTIONER PER VUXEN]],"") -> 0.51 kr
B12: Puddingportioner | C12: 15.00 kr | D12: 1 | E12: 0 | F12: =(MatBord[[#This Row],[PORTIONER PER BARN]]*AntalBarn)+(MatBord[[#This Row],[PORTIONER PER VUXEN]]*AntalVuxna) -> 20 | G12: =IFERROR(MatBord[[#This Row],[SUMMA KOSTNADER]]/MatBord[[#This Row],[TOTALT ANTAL PORTIONER]],"") -> 0.75 kr | H12: =IFERROR(MatBord[[#This Row],[KOSTNAD PER PORTION]]*MatBord[[#This Row],[PORTIONER PER BARN]],"") -> 0.75 kr | I12: =IFERROR(MatBord[[#This Row],[KOSTNAD PER PORTION]]*MatBord[[#This Row],[PORTIONER PER VUXEN]],"") -> 0.00 kr | J12: Köpa packeterade portioner: Vanilj och choklad
B13: Fyllda champinjoner | C13: 32.00 kr | D13: 1 | E13: 2 | F13: =(MatBord[[#This Row],[PORTIONER PER BARN]]*AntalBarn)+(MatBord[[#This Row],[PORTIONER PER VUXEN]]*AntalVuxna) -> 72 | G13: =IFERROR(MatBord[[#This Row],[SUMMA KOSTNADER]]/MatBord[[#This Row],[TOTALT ANTAL PORTIONER]],"") -> 0.44 kr | H13: =IFERROR(MatBord[[#This Row],[KOSTNAD PER PORTION]]*MatBord[[#This Row],[PORTIONER PER BARN]],"") -> 0.44 kr | I13: =IFERROR(MatBord[[#This Row],[KOSTNAD PER PORTION]]*MatBord[[#This Row],[PORTIONER PER VUXEN]],"") -> 0.89 kr | J13: Champinjoner fyllda med färskost och korv
B14: Bruschetta | C14: 22.00 kr | D14: 0 | E14: 3 | F14: =(MatBord[[#This Row],[PORTIONER PER BARN]]*AntalBarn)+(MatBord[[#This Row],[PORTIONER PER VUXEN]]*AntalVuxna) -> 78 | G14: =IFERROR(MatBord[[#This Row],[SUMMA KOSTNADER]]/MatBord[[#This Row],[TOTALT ANTAL PORTIONER]],"") -> 0.28 kr | H14: =IFERROR(MatBord[[#This Row],[KOSTNAD PER PORTION]]*MatBord[[#This Row],[PORTIONER PER BARN]],"") -> 0.00 kr | I14: =IFERROR(MatBord[[#This Row],[KOSTNAD PER PORTION]]*MatBord[[#This Row],[PORTIONER PER VUXEN]],"") -> 0.85 kr | J14: Tomat med basilika
B15: Rökt lax | C15: 50.00 kr | D15: 1 | E15: 2 | F15: =(MatBord[[#This Row],[PORTIONER PER BARN]]*AntalBarn)+(MatBord[[#This Row],[PORTIONER PER VUXEN]]*AntalVuxna) -> 72 | G15: =IFERROR(MatBord[[#This Row],[SUMMA KOSTNADER]]/MatBord[[#This Row],[TOTALT ANTAL PORTIONER]],"") -> 0.69 kr | H15: =IFERROR(MatBord[[#This Row],[KOSTNAD PER PORTION]]*MatBord[[#This Row],[PORTIONER PER BARN]],"") -> 0.69 kr | I15: =IFERROR(MatBord[[#This Row],[KOSTNAD PER PORTION]]*MatBord[[#This Row],[PORTIONER PER VUXEN]],"") -> 1.39 kr
B16: Minibaglar | C16: 20.00 kr | D16: 1 | E16: 2 | F16: =(MatBord[[#This Row],[PORTIONER PER BARN]]*AntalBarn)+(MatBord[[#This Row],[PORTIONER PER VUXEN]]*AntalVuxna) -> 72 | G16: =IFERROR(MatBord[[#This Row],[SUMMA KOSTNADER]]/MatBord[[#This Row],[TOTALT ANTAL PORTIONER]],"") -> 0.28 kr | H16: =IFERROR(MatBord[[#This Row],[KOSTNAD PER PORTION]]*MatBord[[#This Row],[PORTIONER PER BARN]],"") -> 0.28 kr | I16: =IFERROR(MatBord[[#This Row],[KOSTNAD PER PORTION]]*MatBord[[#This Row],[PORTIONER PER VUXEN]],"") -> 0.56 kr | J16: 4 påsar – blandat
B17: Färskost | C17: 10.00 kr | D17: 1 | E17: 2 | F17: =(MatBord[[#This Row],[PORTIONER PER BARN]]*AntalBarn)+(MatBord[[#This Row],[PORTIONER PER VUXEN]]*AntalVuxna) -> 72 | G17: =IFERROR(MatBord[[#This Row],[SUMMA KOSTNADER]]/MatBord[[#This Row],[TOTALT ANTAL PORTIONER]],"") -> 0.14 kr | H17: =IFERROR(MatBord[[#This Row],[KOSTNAD PER PORTION]]*MatBord[[#This Row],[PORTIONER PER BARN]],"") -> 0.14 kr | I17: =IFERROR(MatBord[[#This Row],[KOSTNAD PER PORTION]]*MatBord[[#This Row],[PORTIONER PER VUXEN]],"") -> 0.28 kr | J17: 2 stora tuber
B18: Kapris | C18: 12.00 kr | D18: 1 | E18: 2 | F18: =(MatBord[[#This Row],[PORTIONER PER BARN]]*AntalBarn)+(MatBord[[#This Row],[PORTIONER PER VUXEN]]*AntalVuxna) -> 72 | G18: =IFERROR(MatBord[[#This Row],[SUMMA KOSTNADER]]/MatBord[[#This Row],[TOTALT ANTAL PORTIONER]],"") -> 0.17 kr | H18: =IFERROR(MatBord[[#This Row],[KOSTNAD PER PORTION]]*MatBord[[#This Row],[PORTIONER PER BARN]],"") -> 0.17 kr | I18: =IFERROR(MatBord[[#This Row],[KOSTNAD PER PORTION]]*MatBord[[#This Row],[PORTIONER PER VUXEN]],"") -> 0.33 kr | J18: 3 burkar
B19: Kycklingvingar | C19: 45.00 kr | D19: 2 | E19: 4 | F19: =(MatBord[[#This Row],[PORTIONER PER BARN]]*AntalBarn)+(MatBord[[#This Row],[PORTIONER PER VUXEN]]*AntalVuxna) -> 144 | G19: =IFERROR(MatBord[[#This Row],[SUMMA KOSTNADER]]/MatBord[[#This Row],[TOTALT ANTAL PORTIONER]],"") -> 0.31 kr | H19: =IFERROR(MatBord[[#This Row],[KOSTNAD PER PORTION]]*MatBord[[#This Row],[PORTIONER PER BARN]],"") -> 0.63 kr | I19: =IFERROR(MatBord[[#This Row],[KOSTNAD PER PORTION]]*MatBord[[#This Row],[PORTIONER PER VUXEN]],"") -> 1.25 kr | J19: Köp från den lokala affären
B20: Hummus | C20: 10.00 kr | D20: 4 | E20: 6 | F20: =(MatBord[[#This Row],[PORTIONER PER BARN]]*AntalBarn)+(MatBord[[#This Row],[PORTIONER PER VUXEN]]*AntalVuxna) -> 236 | G20: =IFERROR(MatBord[[#This Row],[SUMMA KOSTNADER]]/MatBord[[#This Row],[TOTALT ANTAL PORTIONER]],"") -> 0.04 kr | H20: =IFERROR(MatBord[[#This Row],[KOSTNAD PER PORTION]]*MatBord[[#This Row],[PORTIONER PER BARN]],"") -> 0.17 kr | I20: =IFERROR(MatBord[[#This Row],[KOSTNAD PER PORTION]]*MatBord[[#This Row],[PORTIONER PER VUXEN]],"") -> 0.25 kr | J20: Förbereda kvällen innan
B21: Pitachips med parmesan | C21: 14.00 kr | D21: 4 | E21: 6 | F21: =(MatBord[[#This Row],[PORTIONER PER BARN]]*AntalBarn)+(MatBord[[#This Row],[PORTIONER PER VUXEN]]*AntalVuxna) -> 236 | G21: =IFERROR(MatBord[[#This Row],[SUMMA KOSTNADER]]/MatBord[[#This Row],[TOTALT ANTAL PORTIONER]],"") -> 0.06 kr | H21: =IFERROR(MatBord[[#This Row],[KOSTNAD PER PORTION]]*MatBord[[#This Row],[PORTIONER PER BARN]],"") -> 0.24 kr | I21: =IFERROR(MatBord[[#This Row],[KOSTNAD PER PORTION]]*MatBord[[#This Row],[PORTIONER PER VUXEN]],"") -> 0.36 kr | J21: Förbereda kvällen innan
B22: Blandade grönsaker | C22: 30.00 kr | D22: 4 | E22: 10 | F22: =(MatBord[[#This Row],[PORTIONER PER BARN]]*AntalBarn)+(MatBord[[#This Row],[PORTIONER PER VUXEN]]*AntalVuxna) -> 340 | G22: =IFERROR(MatBord[[#This Row],[SUMMA KOSTNADER]]/MatBord[[#This Row],[TOTALT ANTAL PORTIONER]],"") -> 0.09 kr | H22: =IFERROR(MatBord[[#This Row],[KOSTNAD PER PORTION]]*MatBord[[#This Row],[PORTIONER PER BARN]],"") -> 0.35 kr | I22: =IFERROR(MatBord[[#This Row],[KOSTNAD PER PORTION]]*MatBord[[#This Row],[PORTIONER PER VUXEN]],"") -> 0.88 kr | J22: Morot, selleri, broccoli, blomkål, röd och grön paprika
B23: Ostboll | C23: 15.00 kr | D23: 5 | E23: 10 | F23: =(MatBord[[#This Row],[PORTIONER PER BARN]]*AntalBarn)+(MatBord[[#This Row],[PORTIONER PER VUXEN]]*AntalVuxna) -> 360 | G23: =IFERROR(MatBord[[#This Row],[SUMMA KOSTNADER]]/MatBord[[#This Row],[TOTALT ANTAL PORTIONER]],"") -> 0.04 kr | H23: =IFERROR(MatBord[[#This Row],[KOSTNAD PER PORTION]]*MatBord[[#This Row],[PORTIONER PER BARN]],"") -> 0.21 kr | I23: =IFERROR(MatBord[[#This Row],[KOSTNAD PER PORTION]]*MatBord[[#This Row],[PORTIONER PER VUXEN]],"") -> 0.42 kr | J23: Blandat: färskost, stark ost med nötter
B24: Kex | C24: 25.00 kr | D24: 5 | E24: 10 | F24: =(MatBord[[#This Row],[PORTIONER PER BARN]]*AntalBarn)+(MatBord[[#This Row],[PORTIONER PER VUXEN]]*AntalVuxna) -> 360 | G24: =IFERROR(MatBord[[#This Row],[SUMMA KOSTNADER]]/MatBord[[#This Row],[TOTALT ANTAL PORTIONER]],"") -> 0.07 kr | H24: =IFERROR(MatBord[[#This Row],[KOSTNAD PER PORTION]]*MatBord[[#This Row],[PORTIONER PER BARN]],"") -> 0.35 kr | I24: =IFERROR(MatBord[[#This Row],[KOSTNAD PER PORTION]]*MatBord[[#This Row],[PORTIONER PER VUXEN]],"") -> 0.69 kr | J24: Blandade
B25: Totalt | C25: =SUBTOTAL(109,MatBord[SUMMA KOSTNADER]) -> 475.00 kr | D25: =SUBTOTAL(109,MatBord[PORTIONER PER BARN]) -> 34.5 | E25: =SUBTOTAL(109,MatBord[PORTIONER PER VUXEN]) -> 65.5 | F25: =SUBTOTAL(109,MatBord[TOTALT ANTAL PORTIONER]) -> 2393 | G25: =SUBTOTAL(109,MatBord[KOSTNAD PER PORTION]) -> 6.92 kr | H25: =SUBTOTAL(109,MatBord[KOSTNAD PER BARN]) -> 7.25 kr | I25: =SUBTOTAL(109,MatBord[KOSTNAD PER VUXEN]) -> 12.69 kr

Sheet Andra nödvändigheter
B3: Andra nödvändigheter
B6: Utrustning och material | C6: Kostnad | D6: Inköpt | E6: Anteckningar
B7: Lokalhyra | C7: 250.00 kr | D7: Ja
B8: Dukar | C8: 30.00 kr | D8: Ja | E8: Hyra
B9: Bord och stolar | C9: 0.00 kr | E9: Ingår i lokalhyran
B10: Drinkservetter | C10: 25.00 kr
B11: Middagsservetter | C11: 20.00 kr | E11: Hyra
B12: Bordsservering | C12: 50.00 kr | E12: Hyra
B13: Porslin | C13: 25.00 kr | E13: Hyra
B14: Totalt | C14: =SUBTOTAL(109,Bord1Budget[Kostnad]) -> 400.00 kr
B18: Dekorationer | C18: Kostnad | D18: Inköpt | E18: Anteckningar
B19: Ballonger | C19: 25.00 kr
B20: Heliumtub | C20: 50.00 kr | E20: Hyra
B21: Bordsdekorationer | C21: 100.00 kr | D21: Ja | E21: 10 totalt
B22: Glasvaser | C22: 0.00 kr | E22: Låna av Katarina
B23: Totalt | C23: =SUBTOTAL(109,Tabell2Budget[Kostnad]) -> 175.00 kr
B27: Övrigt | C27: Kostnad | D27: Inköpt | E27: Anteckningar
B28: Inbjudningar | C28: 50.00 kr | D28: Ja
B29: Porto | C29: 60.00 kr | D29: Ja
B30: Fotograf | C30: 125.00 kr | E30: 2 timmar (14.00–16.00)
B31: Festgåvor | C31: 50.00 kr
B32: Totalt | C32: =SUBTOTAL(109,Tabell3Budget[Kostnad]) -> 285.00 kr

Sheet Rutnät för bordsplacering
A1: Bordsplacering
AH35: *1 ruta = cirka 0,10 m2
A36: Anteckningar | T36: ="Totalt antal bekräftade gäster: "&GästerSomTackatJa -> Totalt antal bekräftade gäster: 46
T37: Du kan använda någon av följande bordsplaceringar:
U38: =ROUNDUP(GästerSomTackatJa/6,0)&" runt bord, 137 cm (plats för 6)" -> 8 runt bord, 137 cm (plats för 6)
U39: =ROUNDUP(GästerSomTackatJa/8,0) &" runt bord, 152 cm (plats för 8)" -> 6 runt bord, 152 cm (plats för 8)
U40: =ROUNDUP(GästerSomTackatJa/10,0)&"runt bord, 183 cm (plats för 10)" -> 5runt bord, 183 cm (plats för 10)
U41: =ROUNDUP(GästerSomTackatJa/6,0)& " fyrkantigt bord, 76 cm x 183 cm (plats för 6)" -> 8 fyrkantigt bord, 76 cm x 183 cm (plats för 6)
U42: =ROUNDUP(GästerSomTackatJa/8,0)&" fyrkantigt bord, 76 cm x 244 cm (plats för 8)" -> 6 fyrkantigt bord, 76 cm x 244 cm (plats för 8)
T43: (Optimalt avstånd mellan bord: 1 meter)
